[Event "Late-Titled-Tuesday-Blitz-January-23-2024"]
[Site "Chess.com"]
[Date "2024.01.23"]
[Round "5"]
[White "maximnovik"]
[Black "IndianSchoolOfSuffering"]
[Result "1/2-1/2"]
[WhiteElo "2573"]
[BlackElo "2441"]
[TimeControl "180+1"]
[EndTime "14:56:19 PST"]
[Termination "Game drawn by repetition"]

1. e4 {[%clk 0:02:58.7]} 1... c5 {[%clk 0:02:58.9]} 2. Nf3 {[%clk 0:02:58.2]}
2... d6 {[%clk 0:02:59]} 3. d4 {[%clk 0:02:58.3]} 3... cxd4 {[%clk 0:02:59.9]}
4. Nxd4 {[%clk 0:02:58.5]} 4... Nf6 {[%clk 0:03:00.4]} 5. Nc3 {[%clk 0:02:58.3]}
5... a6 {[%clk 0:03:00.9]} 6. a4 {[%clk 0:02:56.9]} 6... g6 {[%clk 0:02:59.5]}
7. Be2 {[%clk 0:02:50.4]} 7... Bg7 {[%clk 0:02:59.1]} 8. O-O {[%clk 0:02:50.4]}
8... O-O {[%clk 0:02:58.7]} 9. Be3 {[%clk 0:02:50.1]} 9... Nc6 {[%clk
0:02:57.7]} 10. Nxc6 {[%clk 0:02:49.9]} 10... bxc6 {[%clk 0:02:57.4]} 11. a5
{[%clk 0:02:50.1]} 11... Be6 {[%clk 0:02:54.7]} 12. e5 {[%clk 0:02:28]} 12...
Nd5 {[%clk 0:02:49.2]} 13. Nxd5 {[%clk 0:02:24]} 13... Bxd5 {[%clk 0:02:47.1]}
14. exd6 {[%clk 0:02:14.2]} 14... exd6 {[%clk 0:02:45.6]} 15. Bd4 {[%clk
0:02:12.4]} 15... Rb8 {[%clk 0:02:38.4]} 16. Bxg7 {[%clk 0:02:10.1]} 16... Kxg7
{[%clk 0:02:38.1]} 17. Qd4+ {[%clk 0:02:09.7]} 17... Qf6 {[%clk 0:02:37.9]} 18.
Qxf6+ {[%clk 0:02:08.1]} 18... Kxf6 {[%clk 0:02:37.8]} 19. b3 {[%clk 0:02:07.2]}
19... Ra8 {[%clk 0:02:33.3]} 20. Rfd1 {[%clk 0:02:05.7]} 20... Rfe8 {[%clk
0:02:31.8]} 21. Bf1 {[%clk 0:02:04.2]} 21... Ke7 {[%clk 0:02:29.1]} 22. Rd4
{[%clk 0:01:57.8]} 22... Be6 {[%clk 0:02:26.2]} 23. Rb4 {[%clk 0:01:54.8]} 23...
c5 {[%clk 0:01:11.4]} 24. Rb6 {[%clk 0:01:53]} 24... c4 {[%clk 0:01:06.4]} 25.
bxc4 {[%clk 0:01:43.7]} 25... Rec8 {[%clk 0:01:05.9]} 26. Ra4 {[%clk 0:01:31.2]}
26... Rc5 {[%clk 0:01:04.6]} 27. h4 {[%clk 0:01:06.9]} 27... Ra7 {[%clk
0:01:01.3]} 28. f3 {[%clk 0:01:04.1]} 28... Bd7 {[%clk 0:00:51.3]} 29. Ra3
{[%clk 0:01:01.4]} 29... Be6 {[%clk 0:00:50.7]} 30. Ra4 {[%clk 0:00:43.5]} 30...
Bd7 {[%clk 0:00:49.7]} 31. Ra3 {[%clk 0:00:40.1]} 31... Be6 {[%clk 0:00:49.5]}
32. Rd3 {[%clk 0:00:36.7]} 32... Bxc4 {[%clk 0:00:40.4]} 33. Rdxd6 {[%clk
0:00:33.9]} 33... Bxf1 {[%clk 0:00:39]} 34. Kxf1 {[%clk 0:00:34.1]} 34... Rxa5
{[%clk 0:00:38.9]} 35. Rd2 {[%clk 0:00:27.9]} 35... Rc5 {[%clk 0:00:38.2]} 36.
Re2+ {[%clk 0:00:26.2]} 36... Kf8 {[%clk 0:00:36.1]} 37. g4 {[%clk 0:00:21.3]}
37... h6 {[%clk 0:00:34.4]} 38. Kf2 {[%clk 0:00:20]} 38... a5 {[%clk 0:00:33.6]}
39. Rb3 {[%clk 0:00:19.6]} 39... a4 {[%clk 0:00:31.9]} 40. Ra3 {[%clk
0:00:19.8]} 40... Kg7 {[%clk 0:00:31.3]} 41. Kg3 {[%clk 0:00:19.8]} 41... Rc4
{[%clk 0:00:27.5]} 42. Rd2 {[%clk 0:00:18]} 42... Rac7 {[%clk 0:00:26.3]} 43.
Re2 {[%clk 0:00:16.5]} 43... g5 {[%clk 0:00:21.7]} 44. hxg5 {[%clk 0:00:16.2]}
44... hxg5 {[%clk 0:00:21.7]} 45. Rd2 {[%clk 0:00:16.6]} 45... Kg6 {[%clk
0:00:21]} 46. Rd6+ {[%clk 0:00:16.5]} 46... f6 {[%clk 0:00:20.8]} 47. Ra6 {[%clk
0:00:16.1]} 47... Rxc2 {[%clk 0:00:17.7]} 48. R3xa4 {[%clk 0:00:16]} 48... Rc1
{[%clk 0:00:15.6]} 49. Ra2 {[%clk 0:00:09.8]} 49... Rg1+ {[%clk 0:00:13.7]} 50.
Rg2 {[%clk 0:00:09.2]} 50... Rf1 {[%clk 0:00:12.7]} 51. Rf2 {[%clk 0:00:09.4]}
51... Rg1+ {[%clk 0:00:12.5]} 52. Rg2 {[%clk 0:00:09.7]} 52... Rd1 {[%clk
0:00:12.1]} 53. Re2 {[%clk 0:00:09.8]} 53... Rd3 {[%clk 0:00:12.1]} 54. Ree6
{[%clk 0:00:08.8]} 54... Rf7 {[%clk 0:00:11.9]} 55. Red6 {[%clk 0:00:08.7]}
55... Rc3 {[%clk 0:00:10.9]} 56. Rdc6 {[%clk 0:00:08.9]} 56... Rxc6 {[%clk
0:00:11.1]} 57. Rxc6 {[%clk 0:00:08.8]} 57... Re7 {[%clk 0:00:12]} 58. Rd6
{[%clk 0:00:08.3]} 58... Rf7 {[%clk 0:00:12.4]} 59. Re6 {[%clk 0:00:08.2]} 59...
Rd7 {[%clk 0:00:12.6]} 60. Rc6 {[%clk 0:00:08.3]} 60... Rd4 {[%clk 0:00:12.9]}
61. Kf2 {[%clk 0:00:08]} 61... Rb4 {[%clk 0:00:12.6]} 62. Ke3 {[%clk 0:00:08.1]}
62... Ra4 {[%clk 0:00:12.7]} 63. Rc7 {[%clk 0:00:07.8]} 63... Rf4 {[%clk
0:00:13]} 64. Rb7 {[%clk 0:00:07.4]} 64... f5 {[%clk 0:00:13.1]} 65. Rb6+ {[%clk
0:00:07.2]} 65... Kg7 {[%clk 0:00:13.1]} 66. Rb5 {[%clk 0:00:07]} 66... Kg6
{[%clk 0:00:11.9]} 67. Rb6+ {[%clk 0:00:05.3]} 67... Kg7 {[%clk 0:00:11.9]} 68.
Rb5 {[%clk 0:00:05.3]} 68... Kf6 {[%clk 0:00:11.8]} 69. Rb6+ {[%clk 0:00:04.9]}
69... Kg7 {[%clk 0:00:11.9]} 1/2-1/2

[Event "Late-Titled-Tuesday-Blitz-January-23-2024"]
[Site "Chess.com"]
[Date "2024.01.23"]
[Round "5"]
[White "IraZyne"]
[Black "UnTucopalaTimba"]
[Result "1-0"]
[WhiteElo "2211"]
[BlackElo "1937"]
[TimeControl "180+1"]
[EndTime "14:56:29 PST"]
[Termination "IraZyne won on time"]

1. e4 {[%clk 0:03:00.9]} 1... c6 {[%clk 0:02:59.2]} 2. d4 {[%clk 0:03:00.5]}
2... d5 {[%clk 0:02:59.1]} 3. exd5 {[%clk 0:03:01.1]} 3... cxd5 {[%clk
0:02:59.2]} 4. Bd3 {[%clk 0:03:01.8]} 4... Nf6 {[%clk 0:02:58.3]} 5. h3 {[%clk
0:03:01.3]} 5... Nc6 {[%clk 0:02:56.4]} 6. c3 {[%clk 0:03:01.3]} 6... g6 {[%clk
0:02:55.2]} 7. Nf3 {[%clk 0:03:01.1]} 7... Bg7 {[%clk 0:02:55.2]} 8. O-O {[%clk
0:03:00.8]} 8... O-O {[%clk 0:02:55.3]} 9. Re1 {[%clk 0:03:01]} 9... e6 {[%clk
0:02:52.6]} 10. Bf4 {[%clk 0:02:59.9]} 10... a6 {[%clk 0:02:50]} 11. Nbd2 {[%clk
0:02:59.1]} 11... b5 {[%clk 0:02:48.7]} 12. Nb3 {[%clk 0:02:45.6]} 12... Na5
{[%clk 0:02:45.1]} 13. Nc5 {[%clk 0:02:42.8]} 13... Nc4 {[%clk 0:02:39.7]} 14.
Qe2 {[%clk 0:02:37]} 14... Nd7 {[%clk 0:02:35.3]} 15. Nxd7 {[%clk 0:02:35.1]}
15... Bxd7 {[%clk 0:02:35.1]} 16. b3 {[%clk 0:02:35]} 16... Na5 {[%clk 0:02:25]}
17. Be5 {[%clk 0:02:29.2]} 17... Nc6 {[%clk 0:02:17.6]} 18. Bxg7 {[%clk
0:02:28.4]} 18... Kxg7 {[%clk 0:02:17.5]} 19. Rac1 {[%clk 0:02:28.1]} 19... Qf6
{[%clk 0:02:09.6]} 20. Ne5 {[%clk 0:02:26.4]} 20... Rfd8 {[%clk 0:01:57.8]} 21.
Qe3 {[%clk 0:02:19.1]} 21... Rac8 {[%clk 0:01:49.6]} 22. Ng4 {[%clk 0:02:07.2]}
22... Qe7 {[%clk 0:01:35.1]} 23. Qh6+ {[%clk 0:02:05.6]} 23... Kg8 {[%clk
0:01:33.6]} 24. Re3 {[%clk 0:02:02.5]} 24... Nxd4 {[%clk 0:01:23]} 25. Rg3
{[%clk 0:01:52.4]} 25... Nf5 {[%clk 0:01:21.2]} 26. Bxf5 {[%clk 0:01:48.9]}
26... exf5 {[%clk 0:01:19]} 27. Nh2 {[%clk 0:01:44.3]} 27... d4 {[%clk 0:01:07]}
28. cxd4 {[%clk 0:01:42.9]} 28... Rxc1+ {[%clk 0:01:05.9]} 29. Qxc1 {[%clk
0:01:42]} 29... Rc8 {[%clk 0:01:05.2]} 30. Qd2 {[%clk 0:01:39.4]} 30... Qa3
{[%clk 0:00:59.5]} 31. Nf3 {[%clk 0:01:32.1]} 31... Qc1+ {[%clk 0:00:57.5]} 32.
Qxc1 {[%clk 0:01:29.7]} 32... Rxc1+ {[%clk 0:00:57.4]} 33. Kh2 {[%clk
0:01:30.3]} 33... Rc2 {[%clk 0:00:56.3]} 34. Ne5 {[%clk 0:01:28.8]} 34... Be6
{[%clk 0:00:54.1]} 35. Rd3 {[%clk 0:01:24.5]} 35... Bd5 {[%clk 0:00:46]} 36. Nd7
{[%clk 0:01:21.9]} 36... Kg7 {[%clk 0:00:40.9]} 37. Kg3 {[%clk 0:01:20.7]} 37...
Rxa2 {[%clk 0:00:37]} 38. Nc5 {[%clk 0:01:19.5]} 38... a5 {[%clk 0:00:29.8]} 39.
f3 {[%clk 0:01:16.6]} 39... a4 {[%clk 0:00:28.4]} 40. bxa4 {[%clk 0:01:16.7]}
40... bxa4 {[%clk 0:00:27.9]} 41. Kf4 {[%clk 0:01:15.2]} 41... Kf6 {[%clk
0:00:26.7]} 42. h4 {[%clk 0:01:14.1]} 42... h6 {[%clk 0:00:25.7]} 43. Nd7+
{[%clk 0:01:11.1]} 43... Ke7 {[%clk 0:00:22.4]} 44. Nb6 {[%clk 0:01:10.8]} 44...
Be6 {[%clk 0:00:20.3]} 45. d5 {[%clk 0:01:10.1]} 45... Bd7 {[%clk 0:00:19.6]}
46. d6+ {[%clk 0:01:10.3]} 46... Kd8 {[%clk 0:00:19.3]} 47. g4 {[%clk
0:01:04.6]} 47... fxg4 {[%clk 0:00:19]} 48. fxg4 {[%clk 0:01:04.9]} 48... Rf2+
{[%clk 0:00:18.7]} 49. Ke5 {[%clk 0:01:04.7]} 49... Re2+ {[%clk 0:00:17.3]} 50.
Kf6 {[%clk 0:01:03.1]} 50... Re6+ {[%clk 0:00:17.3]} 51. Kxf7 {[%clk 0:01:03.2]}
51... Re4 {[%clk 0:00:16.8]} 52. g5 {[%clk 0:00:52.3]} 52... hxg5 {[%clk
0:00:16.2]} 53. hxg5 {[%clk 0:00:52]} 53... Rb4 {[%clk 0:00:16]} 54. Nxa4 {[%clk
0:00:49.5]} 54... Rxa4 {[%clk 0:00:15.3]} 55. Kxg6 {[%clk 0:00:49.2]} 55... Rf4
{[%clk 0:00:13.7]} 56. Rd5 {[%clk 0:00:48.3]} 56... Be8+ {[%clk 0:00:13.2]} 57.
Kg7 {[%clk 0:00:45.4]} 57... Kd7 {[%clk 0:00:13.4]} 58. Re5 {[%clk 0:00:42.2]}
58... Kxd6 {[%clk 0:00:13]} 59. Rxe8 {[%clk 0:00:41.8]} 59... Kd7 {[%clk
0:00:10.5]} 60. Re3 {[%clk 0:00:40]} 60... Kd6 {[%clk 0:00:09.2]} 61. g6 {[%clk
0:00:40.1]} 61... Rg4 {[%clk 0:00:08.3]} 62. Kf6 {[%clk 0:00:39]} 62... Rf4+
{[%clk 0:00:07.7]} 63. Kg5 {[%clk 0:00:39.1]} 63... Rf1 {[%clk 0:00:07.5]} 64.
g7 {[%clk 0:00:38.3]} 64... Rg1+ {[%clk 0:00:07.4]} 65. Kf6 {[%clk 0:00:37.3]}
65... Rf1+ {[%clk 0:00:07.4]} 66. Kg6 {[%clk 0:00:36.6]} 66... Rg1+ {[%clk
0:00:07.4]} 67. Kf7 {[%clk 0:00:36.5]} 67... Rf1+ {[%clk 0:00:07.4]} 68. Kg8
{[%clk 0:00:36.5]} 68... Rg1 {[%clk 0:00:07.5]} 69. Re4 {[%clk 0:00:36.1]} 69...
Kd5 {[%clk 0:00:06.9]} 70. Re8 {[%clk 0:00:34.1]} 70... Kd6 {[%clk 0:00:06.2]}
71. Kh7 {[%clk 0:00:31.5]} 71... Rh1+ {[%clk 0:00:05.6]} 72. Kg6 {[%clk
0:00:31.6]} 72... Rg1+ {[%clk 0:00:05.6]} 73. Kf6 {[%clk 0:00:31.6]} 73... Rf1+
{[%clk 0:00:05.4]} 74. Kg6 {[%clk 0:00:28.8]} 74... Rg1+ {[%clk 0:00:05.3]} 75.
Kf7 {[%clk 0:00:28.3]} 75... Rf1+ {[%clk 0:00:05.3]} 76. Kg8 {[%clk 0:00:28.5]}
76... Rg1 {[%clk 0:00:05]} 77. Re3 {[%clk 0:00:27.2]} 77... Kd5 {[%clk
0:00:03.8]} 78. Kf7 {[%clk 0:00:26.3]} 78... Rf1+ {[%clk 0:00:03.8]} 79. Ke7
{[%clk 0:00:24.6]} 79... Rg1 {[%clk 0:00:03.2]} 80. Kf6 {[%clk 0:00:24.1]} 80...
Rf1+ {[%clk 0:00:02.7]} 81. Kg6 {[%clk 0:00:24.3]} 81... Rg1+ {[%clk 0:00:02.7]}
82. Kh7 {[%clk 0:00:24.4]} 82... Rh1+ {[%clk 0:00:02.8]} 83. Kg8 {[%clk
0:00:24.5]} 83... Rg1 {[%clk 0:00:02.9]} 84. Re2 {[%clk 0:00:21.9]} 1-0

[Event "Late-Titled-Tuesday-Blitz-January-23-2024"]
[Site "Chess.com"]
[Date "2024.01.23"]
[Round "5"]
[White "djano"]
[Black "Durarbayli"]
[Result "1/2-1/2"]
[WhiteElo "2697"]
[BlackElo "2866"]
[TimeControl "180+1"]
[EndTime "14:56:50 PST"]
[Termination "Game drawn - insufficient material"]

1. e4 {[%clk 0:03:00.9]} 1... e6 {[%clk 0:03:00.3]} 2. d4 {[%clk 0:02:59]} 2...
d5 {[%clk 0:03:00.8]} 3. Bd3 {[%clk 0:02:59.5]} 3... c5 {[%clk 0:02:59.8]} 4.
exd5 {[%clk 0:02:59.1]} 4... exd5 {[%clk 0:03:00.7]} 5. c3 {[%clk 0:02:59.5]}
5... Nc6 {[%clk 0:03:00.4]} 6. Nf3 {[%clk 0:02:59]} 6... Bg4 {[%clk 0:02:48.7]}
7. O-O {[%clk 0:02:52.8]} 7... cxd4 {[%clk 0:02:48.7]} 8. cxd4 {[%clk
0:02:51.1]} 8... Bd6 {[%clk 0:02:48.7]} 9. h3 {[%clk 0:02:42.6]} 9... Bh5 {[%clk
0:02:46.2]} 10. Re1+ {[%clk 0:02:28.1]} 10... Nge7 {[%clk 0:02:45.6]} 11. Be3
{[%clk 0:02:03.8]} 11... h6 {[%clk 0:02:28]} 12. Nbd2 {[%clk 0:02:01.3]} 12...
O-O {[%clk 0:02:27]} 13. Qb3 {[%clk 0:01:53.4]} 13... Qd7 {[%clk 0:01:51.9]} 14.
Rac1 {[%clk 0:01:37.7]} 14... a6 {[%clk 0:01:52.2]} 15. a3 {[%clk 0:01:32.7]}
15... Rac8 {[%clk 0:01:52.2]} 16. Qa2 {[%clk 0:01:14.3]} 16... Kh8 {[%clk
0:01:17.7]} 17. Qb1 {[%clk 0:01:12.7]} 17... f5 {[%clk 0:01:16]} 18. Ne5 {[%clk
0:00:41.9]} 18... Bxe5 {[%clk 0:01:07.6]} 19. dxe5 {[%clk 0:00:42.8]} 19... Nxe5
{[%clk 0:01:08.1]} 20. Rxc8 {[%clk 0:00:40.1]} 20... Rxc8 {[%clk 0:01:08.2]} 21.
Bf1 {[%clk 0:00:26.8]} 21... N7c6 {[%clk 0:00:54.5]} 22. Nb3 {[%clk 0:00:26.7]}
22... Qf7 {[%clk 0:00:51]} 23. Bf4 {[%clk 0:00:22.3]} 23... Ng6 {[%clk
0:00:47.8]} 24. Bh2 {[%clk 0:00:22.5]} 24... f4 {[%clk 0:00:48.2]} 25. Bd3
{[%clk 0:00:21.4]} 25... Nge5 {[%clk 0:00:44.9]} 26. Bf5 {[%clk 0:00:20.5]}
26... Rf8 {[%clk 0:00:44.6]} 27. Bc2 {[%clk 0:00:18.9]} 27... Bg6 {[%clk
0:00:36.3]} 28. Nc5 {[%clk 0:00:17.1]} 28... Bxc2 {[%clk 0:00:30.9]} 29. Qxc2
{[%clk 0:00:18]} 29... d4 {[%clk 0:00:24.3]} 30. Qe4 {[%clk 0:00:17.4]} 30...
Qf6 {[%clk 0:00:15.6]} 31. b4 {[%clk 0:00:16.3]} 31... a5 {[%clk 0:00:12.7]} 32.
Nxb7 {[%clk 0:00:13.6]} 32... axb4 {[%clk 0:00:12.2]} 33. axb4 {[%clk
0:00:14.5]} 33... Ng6 {[%clk 0:00:09.6]} 34. b5 {[%clk 0:00:13.6]} 34... Nce5
{[%clk 0:00:10.2]} 35. Nc5 {[%clk 0:00:12.5]} 35... Rd8 {[%clk 0:00:08.5]} 36.
Nd3 {[%clk 0:00:11.8]} 36... Nxd3 {[%clk 0:00:08.3]} 37. Qxd3 {[%clk 0:00:12.5]}
37... Kh7 {[%clk 0:00:05.2]} 38. Rb1 {[%clk 0:00:10.4]} 38... Rd6 {[%clk
0:00:05.5]} 39. Kh1 {[%clk 0:00:09.1]} 39... Re6 {[%clk 0:00:03.7]} 40. f3
{[%clk 0:00:08.8]} 40... Rb6 {[%clk 0:00:03.8]} 41. Bg1 {[%clk 0:00:08.6]} 41...
Qg5 {[%clk 0:00:04.5]} 42. Qxd4 {[%clk 0:00:08.6]} 42... Rxb5 {[%clk 0:00:04.6]}
43. Rxb5 {[%clk 0:00:07.9]} 43... Qxb5 {[%clk 0:00:05.5]} 44. Qe4 {[%clk
0:00:08.4]} 44... Qg5 {[%clk 0:00:05.7]} 45. Bf2 {[%clk 0:00:08.6]} 45... Kh8
{[%clk 0:00:06.1]} 46. Kh2 {[%clk 0:00:08.7]} 46... Kg8 {[%clk 0:00:06.2]} 47.
Qe8+ {[%clk 0:00:08.9]} 47... Kh7 {[%clk 0:00:06.2]} 48. Qe4 {[%clk 0:00:09.8]}
48... Qf6 {[%clk 0:00:06.6]} 49. Qd3 {[%clk 0:00:09.8]} 49... Qf7 {[%clk
0:00:07]} 50. Qe4 {[%clk 0:00:10.1]} 50... Qf6 {[%clk 0:00:07.5]} 51. Qd3 {[%clk
0:00:10.5]} 51... Qe6 {[%clk 0:00:08.1]} 52. Qc2 {[%clk 0:00:10.7]} 52... Kg8
{[%clk 0:00:07.6]} 53. Qd3 {[%clk 0:00:10.7]} 53... Ne5 {[%clk 0:00:07.8]} 54.
Qd8+ {[%clk 0:00:10.5]} 54... Kh7 {[%clk 0:00:07.8]} 55. Qd4 {[%clk 0:00:11.4]}
55... Qf5 {[%clk 0:00:08.1]} 56. Qd2 {[%clk 0:00:09.9]} 56... Nf7 {[%clk
0:00:08.3]} 57. Qe2 {[%clk 0:00:08]} 57... Ng5 {[%clk 0:00:08.6]} 58. Bd4 {[%clk
0:00:07.6]} 58... Ne6 {[%clk 0:00:08.5]} 59. Qe5 {[%clk 0:00:07.3]} 59... Qg6
{[%clk 0:00:08.6]} 60. Bc3 {[%clk 0:00:06.5]} 60... Kg8 {[%clk 0:00:08.6]} 61.
Bb2 {[%clk 0:00:06.4]} 61... Kf7 {[%clk 0:00:08.5]} 62. Qd5 {[%clk 0:00:06.1]}
62... Kg8 {[%clk 0:00:05.3]} 63. Qc4 {[%clk 0:00:06.4]} 63... Qf7 {[%clk
0:00:05.8]} 64. Qe4 {[%clk 0:00:06]} 64... Kh8 {[%clk 0:00:05.9]} 65. Be5 {[%clk
0:00:06.2]} 65... Kg8 {[%clk 0:00:05.1]} 66. Kh1 {[%clk 0:00:06.7]} 66... h5
{[%clk 0:00:03.3]} 67. Kh2 {[%clk 0:00:06.8]} 67... Kh8 {[%clk 0:00:03]} 68. Kh1
{[%clk 0:00:07.2]} 68... Kg8 {[%clk 0:00:03.3]} 69. Kh2 {[%clk 0:00:07.7]} 69...
Nf8 {[%clk 0:00:03.4]} 70. Qxf4 {[%clk 0:00:07.2]} 70... Ng6 {[%clk 0:00:03.3]}
71. Qxf7+ {[%clk 0:00:06.8]} 71... Kxf7 {[%clk 0:00:04.2]} 72. Bd4 {[%clk
0:00:07.3]} 72... Ne7 {[%clk 0:00:04.7]} 73. g4 {[%clk 0:00:07.6]} 73... g6
{[%clk 0:00:05.4]} 74. gxh5 {[%clk 0:00:07.6]} 74... gxh5 {[%clk 0:00:05.7]} 75.
Be5 {[%clk 0:00:07.8]} 75... Nf5 {[%clk 0:00:06.6]} 76. f4 {[%clk 0:00:08.1]}
76... Ke6 {[%clk 0:00:07.5]} 77. Kg2 {[%clk 0:00:08.5]} 77... Kd5 {[%clk
0:00:08.4]} 78. Kf3 {[%clk 0:00:08.8]} 78... Ke6 {[%clk 0:00:08.6]} 79. Bc3
{[%clk 0:00:08.7]} 79... Kd5 {[%clk 0:00:08.8]} 80. Be5 {[%clk 0:00:08.6]} 80...
Nh4+ {[%clk 0:00:08.8]} 81. Ke3 {[%clk 0:00:07.7]} 81... Nf5+ {[%clk 0:00:09.7]}
82. Kd3 {[%clk 0:00:07.8]} 82... Nh4 {[%clk 0:00:09.3]} 83. Bf6 {[%clk
0:00:08.2]} 83... Nf5 {[%clk 0:00:10.2]} 84. Bg5 {[%clk 0:00:08.6]} 84... Nd6
{[%clk 0:00:10.3]} 85. h4 {[%clk 0:00:08.5]} 85... Ke6 {[%clk 0:00:10.5]} 86.
Ke3 {[%clk 0:00:07.9]} 86... Kf5 {[%clk 0:00:10.9]} 87. Kd4 {[%clk 0:00:07.9]}
87... Ne4 {[%clk 0:00:11.8]} 88. Ke3 {[%clk 0:00:07.8]} 88... Ng3 {[%clk
0:00:11.8]} 89. Kf3 {[%clk 0:00:08.1]} 89... Ne4 {[%clk 0:00:12.7]} 90. Ke3
{[%clk 0:00:07.3]} 90... Nc5 {[%clk 0:00:11.6]} 91. Kd4 {[%clk 0:00:07.6]} 91...
Ne6+ {[%clk 0:00:12]} 92. Ke3 {[%clk 0:00:08.1]} 92... Kg4 {[%clk 0:00:12.1]}
93. Ke4 {[%clk 0:00:07.5]} 93... Ng7 {[%clk 0:00:12.6]} 94. Ke5 {[%clk
0:00:07.4]} 94... Nf5 {[%clk 0:00:13.5]} 95. Kf6 {[%clk 0:00:07.2]} 95... Ng3
{[%clk 0:00:08.2]} 96. Kg6 {[%clk 0:00:07.2]} 96... Nf5 {[%clk 0:00:08.5]} 97.
Bf6 {[%clk 0:00:06.5]} 97... Kxf4 {[%clk 0:00:07.3]} 98. Kxh5 {[%clk 0:00:06.9]}
98... Nxh4 {[%clk 0:00:08.2]} 1/2-1/2